fUST/lending_fUST_20240219
["ID","MTS","AMOUNT","RATE_DAILY","PERIOD"]
[314394082,1708272040461,-324.60333618,0.00023878,2]
[314394083,1708272040493,-281.13639612,0.00023879,2]
[314394084,1708272040521,-500.0,0.00023879,2]
[314394085,1708272040549,-485.72212339,0.000239,2]
[314394086,1708272117223,281.13639612,0.00024657,2]
[314394087,1708272119435,500.0,0.00024657,2]
[314394088,1708272127400,323.81474893,0.000239,2]
[314394089,1708272183892,281.13639612,0.00024657,2]
[314394091,1708272198468,500.0,0.00024657,2]
[314394092,1708272252241,281.13639612,0.00024657,2]
[314394093,1708272269963,500.0,0.00024657,2]
[314394094,1708272338979,500.0,0.00024657,2]
[314394096,1708272411991,500.0,0.00024657,2]
[314394099,1708272497503,500.0,0.00024657,2]
[314394105,1708272562516,500.0,0.00024657,2]
[314394118,1708272593286,13741.31420702,0.00024624,2]
[314394341,1708272638232,-1072.56520336,0.00024624,2]
[314394342,1708272638244,-2936.99607092,0.00024624,2]
[314394343,1708272638254,-166.666666,0.00024658,2]
[314394344,1708272638263,-300.0,0.00024726,2]
[314394345,1708272638274,-4743.35422364,0.00025,2]
[314394346,1708272638284,-154.35278647,0.00025184,2]
[314394348,1708272638297,-166.666666,0.00025284,2]
[314394350,1708272638307,-166.666666,0.00025911,2]
[314394352,1708272638317,-761.11,0.0002599,3]
[314394354,1708272638326,-1451.39,0.0002599,3]
[314394356,1708272638337,-1209.49,0.0002599,3]
[314394357,1708272638346,-1007.91,0.0002599,3]
[314394358,1708272638356,-326.91750851,0.00025998,2]
[314394359,1708272638366,-375.57940243,0.00025998,2]
[314394360,1708272638376,-250.37867141,0.00025998,2]
[314394361,1708272638385,-427.90583504,0.00025998,2]
[314394362,1708272638395,-500.0,0.00025998,2]
[314394363,1708272638404,-21601.95695259,0.00025999,2]
[314394364,1708272638416,-408.33341112,0.00025999,2]
[314394365,1708272638426,-4044.22853226,0.00026,5]
[314394366,1708272638437,-329.53418566,0.00026,5]
[314394438,1708272643320,-839.93,0.0002599,3]
[314394441,1708272643329,-193.17468075,0.00026,5]
[314394446,1708272643375,-71466.57803403,0.00026,5]
[314394448,1708272643384,-506.7114074,0.00026,2]
[314394450,1708272643393,-1292.40409797,0.00026,2]
[314394452,1708272643402,-154.1769514,0.00026,2]
[314394453,1708272643411,-153.0,0.00026,2]
[314394455,1708272643420,-153.0,0.00026,2]
[314394457,1708272643429,-153.0,0.00026,2]
[314394460,1708272643439,-153.0,0.00026,2]
[314394462,1708272643448,-153.0,0.00026,2]
[314394463,1708272643457,-306.0,0.00026,2]
[314394464,1708272643466,-153.0,0.00026,2]
[314394466,1708272643475,-2000.0,0.00026,2]
[314394468,1708272643484,-153.0,0.00026,2]
[314394470,1708272643493,-153.0,0.00026,2]
[314394471,1708272643503,-200.0,0.00026,4]
[314394472,1708272643512,-2001.177962,0.00026,2]
[314394473,1708272643521,-153.0,0.00026,2]
[314394474,1708272643531,-153.0,0.00026,2]
[314394475,1708272643540,-153.0,0.00026,2]
[314394476,1708272643549,-153.0,0.00026,2]
[314394477,1708272643558,-158.042175,0.00026,2]
[314394478,1708272643568,-153.0,0.00026,2]
[314394479,1708272643578,-378.8014663,0.00026,2]
[314394480,1708272643587,-153.0,0.00026,2]
[314394481,1708272643596,-153.0,0.00026,2]
[314394482,1708272643605,-579.0,0.00026,2]
[314394483,1708272643614,-2000.0,0.0002601,2]
[314394484,1708272643624,-2000.0,0.0002602,2]
[314394485,1708272643633,-2000.0,0.0002603,2]
[314394486,1708272643642,-2000.0,0.0002604,2]
[314394487,1708272643651,-2000.0,0.0002605,2]
[314394488,1708272643660,-2000.0,0.0002606,2]
[314394489,1708272643670,-2000.0,0.0002607,2]
[314394490,1708272643679,-2000.0,0.0002608,2]
[314394491,1708272643689,-2000.0,0.0002609,2]
[314394492,1708272643698,-2000.0,0.000261,2]
[314394493,1708272643706,-2000.0,0.0002611,2]
[314394494,1708272643716,-126.73799055,0.0002612,2]
[314395238,1708273838414,-500.0,0.0002376,2]
[314395239,1708273838423,-300.0,0.0002376,2]
[314395240,1708273838433,-1885.08060166,0.00023761,2]
[314395241,1708273838445,-672.68140241,0.00023761,2]
[314395242,1708273838466,-22342.23799593,0.00023761,2]
[314395243,1708273838475,-176.61314,0.00023813,2]
[314395244,1708273838484,-360.93865314,0.0002393,2]
[314395245,1708273838493,-168.275373,0.00024552,2]
[314395246,1708273838502,-166.666666,0.00024658,2]
[314395247,1708273838510,-4461.43359676,0.00025,2]
[314395248,1708273838519,-673.2682053,0.00025186,2]
[314395249,1708273838528,-166.666666,0.00025235,2]
[314395250,1708273838537,-4743.35422364,0.00025478,2]
[314395251,1708273838546,-153.0,0.00025479,2]
[314395252,1708273838555,-153.0,0.00025479,2]
[314395253,1708273838564,-153.0,0.00025479,2]
[314395254,1708273838573,-153.0,0.00025479,2]
[314395255,1708273838581,-153.0,0.00025479,2]
[314395256,1708273838590,-327.5474294,0.00025479,2]
[314395257,1708273838599,-153.0,0.00025479,2]
[314395258,1708273838607,-306.0,0.00025479,2]
[314395259,1708273838616,-260.2592244,0.00025479,2]
[314395260,1708273838625,-153.0,0.00025479,2]
[314395261,1708273838634,-153.0,0.00025479,2]
[314395262,1708273838643,-153.0,0.00025479,2]
[314395263,1708273838652,-342.2476447,0.00025479,2]
[314395265,1708273838666,-153.0,0.00025479,2]
[314395266,1708273838675,-153.0,0.00025479,2]
[314395268,1708273838685,-153.0,0.00025479,2]
[314395270,1708273838694,-153.0,0.00025479,2]
[314395272,1708273838704,-153.0,0.00025479,2]
[314395274,1708273838713,-153.0,0.00025479,2]
[314395275,1708273838722,-153.0,0.00025479,2]
[314395277,1708273838731,-400.694443,0.00025479,2]
[314395279,1708273838740,-200.3472215,0.00025479,2]
[314395280,1708273838750,-200.3472215,0.00025479,2]
[314395281,1708273838761,-153.0,0.00025479,2]
[314395282,1708273838770,-166.666666,0.00025812,2]
[314395283,1708273838779,-2000.0,0.00026,2]
[314395284,1708273838788,-200.0,0.00026,4]
[314395285,1708273838797,-153.0,0.00026,2]
[314395286,1708273838806,-153.0,0.00026,2]
[314395287,1708273838815,-153.0,0.00026,2]
[314395288,1708273838824,-153.0,0.00026,2]
[314395289,1708273838833,-153.0,0.00026,2]
[314395290,1708273838842,-153.0,0.00026,2]
[314395291,1708273838851,-153.0,0.00026,2]
[314395292,1708273838860,-153.0,0.00026,2]
[314395293,1708273838869,-153.0,0.00026,2]
[314395294,1708273838879,-154.4551172,0.00026,2]
[314395295,1708273838888,-889.0,0.00026,2]
[314395296,1708273838897,-1320.85892781,0.0002601,2]
[314395297,1708273838911,-679.14107219,0.0002601,2]
[314395298,1708273838920,-2000.0,0.0002602,2]
[314395299,1708273838929,-2000.0,0.0002603,2]
[314395300,1708273838939,-2000.0,0.0002604,2]
[314395301,1708273838948,-2000.0,0.0002605,2]
[314395302,1708273838957,-1670.3452128,0.0002606,2]
[314395311,1708273841670,-329.6547872,0.0002606,2]
[314395312,1708273841763,-2000.0,0.0002607,2]
[314395313,1708273841773,-2858.89295984,0.0002607,2]
[314395314,1708273841784,-5007.37460319,0.0002607,2]
[314395315,1708273841795,-261.1484091,0.0002607,2]
[314395316,1708273841807,-1069.88188367,0.0002607,2]
[314395317,1708273841818,-359.50100004,0.0002607,2]
[314395323,1708273843431,-2311.3043524,0.0002607,2]
[314395325,1708273843442,-61830.37891567,0.0002607,2]
[314395327,1708273843487,-1407.9999994,0.0002607,2]
[314395334,1708273846595,-200.3472215,0.00025479,2]
[314395335,1708273846604,-158166.04924397,0.0002607,2]
[314395388,1708275032658,-500.0,0.00023968,2]
[314395390,1708275032667,-154.93802479,0.00023969,2]
[314395392,1708275032677,-337.33387132,0.0002397,2]
[314395394,1708275032687,-166.666666,0.00024658,2]
[314395396,1708275032696,-4743.35422364,0.00025,2]
[314395398,1708275032705,-166.666666,0.00025292,2]
[314395400,1708275032714,-200.0,0.000257,4]
[314395402,1708275032723,-166.666666,0.00025927,2]
[314395404,1708275032732,-1372.62823601,0.00026,2]
[314395406,1708275032743,-627.37176399,0.00026,2]
[314395407,1708275032752,-47.48822757,0.0002601,2]
[314395409,1708275032765,-1952.51177243,0.0002601,2]
[314395410,1708275032773,-797.29778044,0.0002602,2]
[314395540,1708275043587,-1202.70221956,0.0002602,2]
[314395541,1708275043597,-2000.0,0.0002603,2]
[314395542,1708275043606,-2000.0,0.0002604,2]
[314395543,1708275043616,-2000.0,0.0002605,2]
[314395544,1708275043625,-2000.0,0.0002606,2]
[314395545,1708275043634,-34227.2630475,0.0002607,2]
[314395557,1708275046621,-599.14949005,0.0002607,2]
[314395558,1708275046633,-257.30468228,0.0002607,2]
[314395610,1708276231784,-286.40039298,0.00022589,2]
[314395612,1708276231794,-3928.71613348,0.00022589,2]
[314395614,1708276231803,-1945.42863711,0.0002259,2]
[314395616,1708276231813,-359.2147631,0.0002397,2]
[314395618,1708276231822,-166.666666,0.00024658,2]
[314395620,1708276231831,-160.51,0.0002499,3]
[314395622,1708276231840,-4184.87438327,0.00025,2]
[314395625,1708276231852,-5203.07376383,0.00025,2]
[314395629,1708276231863,-652.85347624,0.00025,2]
[314395631,1708276231874,-74971.78864507,0.00025,2]
[314395633,1708276231883,-4743.35422364,0.00025,2]
[314395635,1708276231893,-622.66341026,0.00025124,2]
[314395637,1708276231902,-166.666666,0.00025235,2]
[314395639,1708276231911,-153.0,0.000253,2]
[314395641,1708276231920,-153.0,0.000253,2]
[314395643,1708276231929,-200.3472215,0.000253,2]
[314395645,1708276231938,-153.0,0.00025378,2]
[314395647,1708276231947,-400.6387186,0.00025378,2]
[314395649,1708276231956,-400.3158673,0.00025479,2]
[314395651,1708276231965,-200.023152,0.00025479,2]
[314395653,1708276231974,-306.0,0.00025479,2]
[314395655,1708276231983,-200.0,0.000255,4]
[314395657,1708276231992,-306.0,0.00025578,2]
[314395659,1708276232001,-200.3472215,0.00025678,2]
[314395661,1708276232010,-200.3472215,0.00025678,2]
[314395663,1708276232019,-166.666666,0.00025812,2]
[314395665,1708276232028,-185.10891393,0.000259,2]
[314395667,1708276232037,-481.53,0.0002599,3]
[314395669,1708276232047,-4150.73122005,0.00026,5]
[314395671,1708276232056,-153.0,0.00026,2]
[314395673,1708276232065,-153.0,0.00026,2]
[314395675,1708276232074,-153.0,0.00026,2]
[314395677,1708276232085,-154.5438624,0.00026,2]
[314395679,1708276232094,-279.4721619,0.00026,2]
[314395681,1708276232103,-369.9590275,0.00026,2]
[314395683,1708276232112,-400.6387186,0.00026,2]
[314395685,1708276232121,-337.7331443,0.00026,2]
[314395687,1708276232130,-366.2599611,0.00026,2]
[314395689,1708276232140,-153.0,0.00026,2]
[314395691,1708276232149,-200.3472215,0.00026,2]
[314395693,1708276232158,-200.3472215,0.00026,2]
[314395695,1708276232167,-2000.0,0.00026,2]
[314395697,1708276232176,-2000.0,0.0002601,2]
[314395699,1708276232186,-2000.0,0.0002602,2]
[314395701,1708276232195,-2000.0,0.0002603,2]
[314395703,1708276232206,-2000.0,0.0002604,2]
[314395705,1708276232215,-2000.0,0.0002605,2]
[314395707,1708276232224,-2000.0,0.0002606,2]
[314395709,1708276232232,-22261.6351,0.0002607,2]
[314395712,1708276232250,-1493.83200131,0.0002607,2]
[314395823,1708276237783,-608.88135017,0.0002499,3]
[314395826,1708276237795,-2156.97864983,0.0002499,3]
[314395827,1708276237804,-493.62962824,0.0002607,2]
[314395830,1708276237815,-4022.93777735,0.0002607,2]
[314395832,1708276237826,-7914.50412191,0.0002607,2]
[314395834,1708276237841,-222078.7059107,0.0002607,2]
[314396084,1708276242781,-5201.69915455,0.0002607,2]
[314396085,1708276242793,-1979.42258337,0.0002607,2]
[314396086,1708276242804,-16692.61115427,0.0002607,2]
[314396087,1708276242816,-808.8343163,0.0002607,2]
[314396088,1708276242828,-285.18947623,0.0002607,2]
[314396089,1708276242841,-405.81385633,0.0002607,2]
[314396090,1708276242852,-1401.49993163,0.0002607,2]
[314396091,1708276242863,-51038.39775588,0.0002607,2]
[314396094,1708276242917,-9720.60073861,0.0002607,2]
[314396117,1708276674150,2000.0,0.00033,120]
[314396346,1708277441268,-476.25,0.00023864,2]
[314396348,1708277441277,-536.47106127,0.00023964,2]
[314396350,1708277441286,-154.93802479,0.00023965,2]
[314396352,1708277441295,-154.93802479,0.00023966,2]
[314396353,1708277441304,-329.02685243,0.0002397,2]
[314396355,1708277441313,-4570.7936317,0.00024218,2]
[314396357,1708277441322,-170.048984,0.00024243,2]
[314396359,1708277441331,-250.0,0.00024517,2]
[314396361,1708277441340,-166.666666,0.00024658,2]
[314396363,1708277441349,-311.1511063,0.00024713,2]
[314396365,1708277441358,-166.666666,0.00025235,2]
[314396367,1708277441367,-168.599637,0.00025279,2]
[314396368,1708277441376,-200.0,0.000254,4]
[314396370,1708277441385,-153.0,0.00025478,2]
[314396372,1708277441395,-4743.35422364,0.00025544,2]
[314396374,1708277441404,-1166.5614796,0.00025545,2]
[314396376,1708277441415,-153.0,0.00025578,2]
[314396378,1708277441424,-166.666666,0.00025812,2]
[314396379,1708277441433,-2000.0,0.00026,2]
[314396381,1708277441442,-153.0,0.00026,2]
[314396382,1708277441451,-3495.876512,0.0002601,2]
[314396383,1708277441460,-35516.3211661,0.0002607,2]
[314396384,1708277441474,-3532.7359196,0.0002607,2]
[314396385,1708277441486,-1974.09801179,0.0002607,2]
[314396639,1708278632182,-14061.46720214,0.00023588,2]
[314396869,1708278641428,-327.0028268,0.00023587,2]
[314396870,1708278641438,-352.59779992,0.00023588,2]
[314396871,1708278641487,-1867.30003878,0.00023588,2]
[314396876,1708278643157,-338.86419644,0.00023588,2]
[314396889,1708278646241,-3865.18559932,0.00023588,2]
[314396890,1708278646250,-2187.5311812,0.00023638,2]
[314396891,1708278646260,-219.35123496,0.0002397,2]
[314396892,1708278646269,-171.87500003,0.00024504,2]
[314396893,1708278646278,-3079.30306716,0.00024604,2]
[314396894,1708278646290,-6920.69693284,0.00024604,2]
[314396895,1708278646299,-166.666666,0.00024658,2]
[314396896,1708278646308,-2651.2556639,0.00024702,2]
[314396897,1708278646317,-2910.16777955,0.00025,2]
[314396898,1708278646329,-14778.05741044,0.00025,2]
[314396899,1708278646338,-166.666666,0.00025235,2]
[314396900,1708278646347,-153.0,0.00025479,2]
[314396901,1708278646356,-171.875,0.00025536,2]
[314396902,1708278646365,-153.0,0.00025578,2]
[314396903,1708278646374,-153.0,0.00025678,2]
[314396904,1708278646384,-200.0,0.00025809,2]
[314396905,1708278646393,-166.666666,0.00025812,2]
[314396906,1708278646402,-150.0,0.000259,2]
[314396907,1708278646411,-150.0,0.00026,2]
[314396908,1708278646421,-3936.26067004,0.0002607,2]
[314396922,1708278856254,156.51839319,0.000176,2]
[314396932,1708279770101,-175.72920133,0.00021,2]
[314396933,1708279770123,-294.57728151,0.00022,2]
[314396988,1708279832440,-150.0,0.000229,2]
[314396989,1708279832450,-166.666666,0.00025109,2]
[314396990,1708279832461,-166.666666,0.00025794,2]
[314396991,1708279832471,-150.0,0.000259,2]
[314396992,1708279832481,-156.01144163,0.0002594,2]
[314396993,1708279832491,-6785.9725614,0.00025999,2]
[314396994,1708279832500,-1109.66,0.00026,5]
[314396995,1708279832509,-153.0,0.00026,2]
[314396996,1708279832519,-83693.3238274,0.0002607,2]
[314397033,1708279839235,-1061.90415234,0.0002607,2]
[314397348,1708279842753,-1305.06517547,0.0002607,2]
[314397349,1708279842765,-6459.51541458,0.0002607,2]
[314397350,1708279842777,-5230.50088576,0.0002607,2]
[314397351,1708279842788,-30660.93292003,0.0002607,2]
[314397352,1708279842802,-4735.61828046,0.0002607,2]
[314397353,1708279842813,-2937.58751239,0.0002607,2]
[314397405,1708279843413,-2243.53042003,0.0002607,2]
[314397406,1708279843428,-1219.20949503,0.0002607,2]
[314397408,1708279843440,-568.0000004,0.0002607,2]
[314397914,1708280805185,-324.60333618,0.00022666,2]
[314397915,1708280805205,-29.72251224,0.00022667,2]
[314397916,1708280964079,-273.55227487,0.00022101,2]
[314397917,1708280964099,-162.60653763,0.00022102,2]
[314398072,1708281034108,-164.39628917,0.00022102,2]
[314398074,1708281034117,-151.45456969,0.00022103,2]
[314398076,1708281034127,-500.0,0.00023144,2]
[314398078,1708281034136,-206.953087,0.00023145,2]
[314398079,1708281034145,-174.6838223,0.00023169,2]
[314398081,1708281034154,-159.896642,0.00023374,2]
[314398083,1708281034163,-171.875,0.00023715,2]
[314398086,1708281034173,-19972.1631218,0.00023776,2]
[314398088,1708281034182,-250.0,0.00023815,2]
[314398092,1708281034191,-190.47062656,0.0002397,2]
[314398095,1708281034201,-9359.7878487,0.00024239,2]
[314398097,1708281034210,-166.666666,0.00024658,2]
[314398099,1708281034219,-166.666666,0.00025235,2]
[314398101,1708281034228,-171.875,0.00025317,2]
[314398102,1708281034237,-166.666666,0.00025812,2]
[314398104,1708281034246,-173.919819,0.00026,2]
[314398106,1708281034256,-24528.45103053,0.0002607,2]
[314398201,1708281038626,-86403.67258047,0.0002607,2]
[314398208,1708281038685,-2568.06255992,0.0002607,2]
[314398210,1708281038697,-3941.91063268,0.0002607,2]
[314398268,1708281041847,-2302.83579,0.0002607,2]
[314398326,1708281046634,-13993.04984631,0.0002607,2]
[314398327,1708281046646,-6798.414687,0.0002607,2]
[314398328,1708281046658,-23637.48060288,0.0002607,2]
[314398329,1708281046668,-168.2764688,0.00026301,2]
[314398330,1708281046677,-153.0,0.00026301,2]
[314398331,1708281046686,-153.0,0.00026301,2]
[314398333,1708281046696,-153.0,0.00026301,2]
[314398334,1708281046706,-153.0,0.00026301,2]
[314398336,1708281046715,-153.0,0.00026301,2]
[314398338,1708281046724,-153.0,0.00026301,2]
[314398340,1708281046734,-153.0,0.00026301,2]
[314398342,1708281046744,-153.0,0.00026301,2]
[314398345,1708281046753,-166.666666,0.00026388,2]
[314398347,1708281046763,-1500.0,0.000265,2]
[314398349,1708281046772,-200.3472215,0.000266,2]
[314398351,1708281046781,-4780.82,0.00026734,3]
[314398353,1708281046791,-3531.57900384,0.00026734,3]
[314398386,1708282231810,-327.0028268,0.00022763,2]
[314398387,1708282231819,-281.13639612,0.00022764,2]
[314398388,1708282231829,-9079.9377506,0.00022773,2]
[314398389,1708282231837,-169.1006811,0.00023311,2]
[314398390,1708282231846,-189.804731,0.0002397,2]
[314398391,1708282231856,-171.875,0.0002415,2]
[314398392,1708282231864,-16116.016759,0.00024193,2]
[314398393,1708282231874,-2052.83579,0.0002425,2]
[314398394,1708282231883,-208.465494,0.00024258,2]
[314398395,1708282231893,-3389.56052908,0.00024481,2]
[314398396,1708282231902,-1000.0,0.00024481,3]
[314398397,1708282231911,-166.666666,0.00024658,2]
[314398398,1708282231921,-1000.0,0.0002591,2]
[314398399,1708282231930,-1000.0,0.00025919,2]
[314398400,1708282231939,-1000.0,0.00025928,2]
[314398401,1708282231949,-1000.0,0.00025945,2]
[314398402,1708282231958,-1000.0,0.00025953,2]
[314398403,1708282231967,-1000.0,0.00025959,2]
[314398404,1708282231976,-1000.0,0.00025981,2]
[314398405,1708282231985,-1000.0,0.00025991,2]
[314398406,1708282231994,-1179.74693403,0.00026,2]
[314398407,1708282232007,-820.25306597,0.00026,2]
[314398408,1708282232016,-569.29693403,0.00026,2]
[314398409,1708282232028,-373.68475881,0.00026,2]
[314398418,1708282237866,-57.01830716,0.00026,2]
[314398419,1708282237877,-1000.0,0.00026008,2]
[314398420,1708282237888,-1000.0,0.0002601,2]
[314398421,1708282237899,-2000.0,0.0002601,2]
[314398422,1708282237909,-2000.0,0.0002602,2]
[314398423,1708282237919,-1000.0,0.00026028,2]
[314398424,1708282237930,-2000.0,0.0002603,2]
[314398425,1708282237940,-500.0,0.00026031,2]
[314398426,1708282237950,-684.21826835,0.00026033,2]
[314398427,1708282237960,-3850.0,0.0002604,2]
[314398428,1708282237970,-1000.0,0.00026045,2]
[314398429,1708282237979,-1000.0,0.0002608,2]
[314398430,1708282237988,-1000.0,0.0002609,2]
[314398431,1708282237999,-1000.0,0.00026108,2]
[314398432,1708282238009,-1000.0,0.00026114,2]
[314398433,1708282238018,-1000.0,0.00026115,2]
[314398434,1708282238027,-1000.0,0.00026145,2]
[314398435,1708282238036,-200.3472215,0.00026178,2]
[314398436,1708282238045,-300.0,0.00026272,2]
[314398437,1708282238054,-153.03480473,0.00026429,2]
[314398438,1708282238063,-150.0,0.00026523,2]
[314398439,1708282238073,-158.29762855,0.000266,2]
[314398440,1708282238082,-171.875,0.00026676,3]
[314398441,1708282238091,-2881.37,0.00026732,3]
[314398442,1708282238100,-321.02,0.00026734,3]
[314398443,1708282238109,-3457.64,0.00026734,3]
[314398444,1708282238118,-319.47051236,0.00026734,3]
[314398445,1708282238130,-1999.66185945,0.00026734,3]
[314398455,1708282241080,-82.00762819,0.00026734,3]
[314398457,1708282241092,-273.54659754,0.00026742,2]
[314398459,1708282241102,-500.0,0.00026742,2]
[314398461,1708282241112,-309.87604958,0.00026742,2]
[314398463,1708282241122,-324.60333618,0.00026743,2]
[314398464,1708282241132,-1000.06326422,0.00026744,2]
[314398465,1708282241145,-36480.66311522,0.00026744,2]
[314398466,1708282241157,-12105.49278761,0.00026744,2]
[314398467,1708282241175,-4967.14970059,0.00026744,2]
[314398468,1708282241188,-2392.15445811,0.00026744,2]
[314398469,1708282241198,-277.01406093,0.000269,2]
[314398470,1708282241210,-1000.0,0.00027,2]
[314398471,1708282241220,-404.98345973,0.00027,2]
[314398472,1708282241232,-8051.7041157,0.00027,2]
[314398473,1708282241242,-1000.0,0.00027,27]
[314398474,1708282241253,-794.120072,0.00027,5]
[314398475,1708282241264,-106.90993297,0.00027009,2]
[314398476,1708282241277,-3812.32342413,0.00027009,2]
[314398477,1708282241288,-277.01406089,0.00027031,2]
[314398478,1708282241297,-1000.0,0.00027083,3]
[314398479,1708282241307,-212.9483842,0.00027089,2]
[314398480,1708282241317,-190.98005247,0.00027105,2]
[314398481,1708282241327,-151.0,0.00027123,2]
[314398482,1708282241337,-200.3472215,0.00027123,2]
[314398483,1708282241347,-200.3472215,0.00027123,2]
[314398484,1708282241358,-200.3472215,0.00027123,2]
[314398485,1708282241367,-200.3472215,0.00027123,2]
[314398486,1708282241378,-200.3472215,0.00027123,2]
[314398487,1708282241387,-479.8193834,0.00027123,2]
[314398488,1708282241397,-200.3472215,0.00027123,2]
[314398489,1708282241406,-200.3472215,0.00027123,2]
[314398490,1708282241416,-200.3472215,0.00027123,2]
[314398491,1708282241425,-200.3472215,0.00027123,2]
[314398492,1708282241435,-200.3472215,0.00027123,2]
[314398493,1708282241444,-200.3472215,0.00027123,2]
[314398494,1708282241456,-200.3472215,0.00027123,2]
[314398495,1708282241465,-200.3472215,0.00027123,2]
[314398496,1708282241474,-200.3472215,0.00027123,2]
[314398497,1708282241484,-200.3472215,0.00027123,2]
[314398498,1708282241493,-200.3472215,0.00027123,2]
[314398499,1708282241502,-400.6296291,0.00027123,2]
[314398500,1708282241511,-200.3472215,0.00027123,2]
[314398501,1708282241521,-200.3472215,0.00027123,2]
[314398502,1708282241530,-200.3472215,0.00027123,2]
[314398503,1708282241539,-200.3472215,0.00027123,2]
[314398504,1708282241549,-300.0,0.00027136,2]
[314398505,1708282241558,-940.509034,0.00027159,2]
[314398506,1708282241567,-940.509034,0.00027159,2]
[314398507,1708282241578,-277.01406089,0.00027162,2]
[314398508,1708282241588,-300.0,0.00027274,2]
[314398509,1708282241597,-277.01406089,0.00027292,2]
[314398510,1708282241607,-524.53826371,0.00027304,2]
[314398511,1708282241617,-151.0,0.00027304,2]
[314398512,1708282241626,-975.699449,0.00027304,2]
[314398513,1708282241636,-975.699449,0.00027304,2]
[314398514,1708282241645,-151.0,0.00027304,2]
[314398515,1708282241654,-278.024559,0.00027304,2]
[314398516,1708282241664,-12729.2897667,0.00027311,2]
[314398517,1708282241673,-1000.0,0.00027363,3]
[314398518,1708282241682,-500.0,0.00027379,2]
[314398519,1708282241692,-500.0,0.00027379,2]
[314398520,1708282241702,-500.0,0.00027379,2]
[314398521,1708282241712,-500.0,0.00027379,2]
[314398522,1708282241722,-500.0,0.00027379,2]
[314398523,1708282241732,-500.0,0.00027379,2]
[314398524,1708282241741,-556.03600323,0.00027379,2]
[314398525,1708282241751,-500.0,0.00027379,2]
[314398526,1708282241760,-500.0,0.00027379,2]
[314398527,1708282241769,-500.0,0.00027379,2]
[314398528,1708282241779,-500.0,0.00027379,2]
[314398529,1708282241788,-500.0,0.00027379,2]
[314398530,1708282241798,-500.0,0.00027379,2]
[314398531,1708282241807,-346.41514775,0.00027379,2]
[314398532,1708282241816,-500.0,0.00027379,2]
[314398533,1708282241825,-500.0,0.00027379,2]
[314398534,1708282241834,-556.03600323,0.00027379,2]
[314398535,1708282241843,-600.38564815,0.00027379,2]
[314398536,1708282241853,-159.81788431,0.00027379,2]
[314398537,1708282241868,-231.17005951,0.00027379,2]
[314398538,1708282241877,-530.80262053,0.00027379,2]
[314398539,1708282241887,-269.92748986,0.00027379,2]
[314398570,1708282242784,-0.00159144,0.00027379,2]
[314398635,1708282245842,-200.3472215,0.00027123,2]
[314398637,1708282245851,-326.66155364,0.00027378,2]
[314398639,1708282245861,-281.13639612,0.00027378,2]
[314398641,1708282245871,-230.0709187,0.00027379,2]
[314398643,1708282245880,-500.0,0.00027379,2]
[314398645,1708282245889,-500.0,0.00027379,2]
[314398647,1708282245898,-209.91391004,0.00027379,2]
[314398649,1708282245910,-290.08608996,0.00027379,2]
[314398651,1708282245919,-556.03600323,0.00027379,2]
[314398653,1708282245928,-500.0,0.00027379,2]
[314398655,1708282245937,-500.0,0.00027379,2]
[314398657,1708282245947,-446.46304163,0.00027379,2]
[314398659,1708282245957,-500.0,0.00027379,2]
[314398660,1708282245966,-500.0,0.00027379,2]
[314398677,1708282246113,-500.0,0.00027379,2]
[314398679,1708282246125,-556.03600323,0.00027379,2]
[314398681,1708282246135,-500.0,0.00027379,2]
[314398683,1708282246144,-500.0,0.00027379,2]
[314398685,1708282246153,-500.0,0.00027379,2]